Cogmind - Beta 13 @@@ ROGUE MODE // 2024.03.07 @ 21:06:50 Player: darki Result: Destroyed by H-81 Overseer with Heavy Linear Accelerator Performance ------------- Evolutions (8) 4000 Regions Visited (19) 3800 Robots Destroyed (124) 620 Value Destroyed (4786) 4786 Prototype IDs (45) 900 Alien Tech Used (1) 200 Bonus (1668) 1668 TOTAL SCORE: 15974 Bonus ------- High Alert Combat Kills 245 Follower Combat Kills 336 Entered DSFs 500 Aligned with FarCom 300 Met Zhirov 300 Friendly Fire -13 Cogmind --------- Core Integrity 0/1450 Matter 162/300 Energy 80/100 System Corruption 12% Temperature Cool (9) Movement Flying (40) Location -2/Research Parts ------- > --- POWER (3) -------- (None) > --- PROPULSION (7) --- Impulse Thruster > --- UTILITY (9) ------ (None) > --- WEAPON (4) ------- (None) > --- INVENTORY (5) ---- Micro Fission Core Compact Battery (200) Experimental Shock Absorption System Transdimensional Reconstructor Peak State ------------ > --- POWER ------------ Heavy Antimatter Reactor > --- PROPULSION ------- Antigrav System Improved VTOL Module Cooled Nuclear Pulse Thruster Cooled Nuclear Pulse Thruster Cooled Nuclear Pulse Thruster Impulse Thruster > --- UTILITY ---------- Experimental Signal Interpreter Advanced Melee Analysis Suite Advanced Reaction Control System Cloaking Device Improved Hacking Suite Improved Hacking Suite Advanced System Shield Advanced System Shield Advanced System Shield > --- WEAPON ----------- (None) > --- INVENTORY -------- Micro Fission Core Compact Battery Experimental Shock Absorption System Transdimensional Reconstructor [Rating: 102] Favorites ----------- Power Enhanced Nuclear Core Engine Light Ion Engine Power Core Enhanced Nuclear Core Reactor Heavy Antimatter Reactor Propulsion Light Treads Treads Light Treads Leg Aluminum Leg Wheel Wheel Hover Unit Antigrav System Flight Unit Improved VTOL Module Utility Humpback Device Kinecellerator Storage Humpback Processor Advanced Melee Analysis Suite Hackware Advanced System Shield Protection Improved Medium Armor Plating Weapon Advanced Assault Cannon Energy Gun Medium Laser Energy Cannon Phase Cannon Ballistic Gun Light Assault Rifle Ballistic Cannon Advanced Assault Cannon Launcher Advanced EMP Blaster Impact Weapon Heavy Flail Build | -11 -10 -10 -10 -9 -8 -7 -7 -6 -5 -5 -5 -4 -4 -4 -4 -3 -3 -3 -2 ------- Run | Yrd Mat Min Exi Min Mat Fac Sto Fac Fac Was Fac Fac Upp Upp Zhi Pro Res DSF Res Slots Evolved 16 | . . . . . 4 2 . 2 2 . . 2 . . . . 2 . 2 Power 2 | . . . . . . . . . 1 . . . . . . . . . 1 Propulsion 5 | . . . . . . . . 1 1 . . 1 . . . . 1 . 1 Utility 7 | . . . . . 2 2 . 1 . . . 1 . . . . 1 . . Weapon 2 | . . . . . 2 . . . . . . . . . . . . . . Parts Attached 144 | . 2 5 4 5 33 2 9 27 20 3 1 7 1 . 11 . . 5 9 Power 16 | . . . 1 1 1 1 1 3 . 3 . 1 . . 4 . . . . Engine 6 | . . . 1 1 1 . . 2 . . . 1 . . . . . . . Core 7 | . . . . . . 1 1 1 . 2 . . . . 2 . . . . Reactor 3 | . . . . . . . . . . 1 . . . . 2 . . . . Propulsion 31 | . . 2 2 2 5 1 . 3 5 . . 1 . . 3 . . . 7 Treads 13 | . . 2 . 2 5 1 . 3 . . . . . . . . . . . Leg . | . . . . . . . . . . . . . . . . . . . . Wheel 2 | . . . 2 . . . . . . . . . . . . . . . . Hover 1 | . . . . . . . . . . . . . . . . . . . 1 Flight 15 | . . . . . . . . . 5 . . 1 . . 3 . . . 6 Utility 60 | . 1 1 1 . 18 . 3 10 8 . 1 5 1 . 4 . . 5 2 Device 34 | . . 1 . . 12 . 2 4 6 . . 3 1 . 3 . . . 2 Storage 7 | . 1 . 1 . 3 . . 1 . . . 1 . . . . . . . Processor 4 | . . . . . . . . . 2 . 1 1 . . . . . . . Hackware 5 | . . . . . . . . . . . . . . . . . . 5 . Protection 10 | . . . . . 3 . 1 5 . . . . . . 1 . . . . Artifact . | . . . . . . . . . . . . . . . . . . . . Weapon 37 | . 1 2 . 2 9 . 5 11 7 . . . . . . . . . . Energy Gun . | . . . . . . . . . . . . . . . . . . . . Energy Cannon 1 | . . . . . . . . 1 . . . . . . . . . . . Ballistic Gun 13 | . 1 2 . 2 2 . 1 5 . . . . . . . . . . . Ballistic Cannon 10 | . . . . . 6 . 2 2 . . . . . . . . . . . Launcher 6 | . . . . . 1 . 2 3 . . . . . . . . . . . Special Weapon . | . . . . . . . . . . . . . . . . . . . . Impact Weapon 7 | . . . . . . . . . 7 . . . . . . . . . . Slashing Weapon . | . . . . . . . . . . . . . . . . . . . . Piercing Weapon . | . . . . . . . . . . . . . . . . . . . . Special Melee Weapon . | . . . . . . . . . . . . . . . . . . . . Unidentified Prototypes 14 | . . . . . . 1 2 1 2 1 . 1 . . 5 . . . 1 Corrupted Parts 1 | . . . . . . . . . . . . . . . . . . . 1 System Corruption 10 | . . . . . . . . . . . . . . . . . . . 10 Parts Lost 49 | . . 4 . 5 3 . 1 16 . . . 8 1 . . 1 . . 10 Power 7 | . . 1 . 1 . . . 2 . . . 2 . . . . . . 1 Propulsion 14 | . . 2 . 2 1 . . 1 . . . 4 . . . . . . 4 Utility 19 | . . . . . 2 . 1 7 . . . 2 1 . . 1 . . 5 Weapon 9 | . . 1 . 2 . . . 6 . . . . . . . . . . . Highest Loss Streak 10 | . . 4 . 5 2 . 1 8 . . . 8 9 . . 1 . . 10 To Critical Strikes . | . . . . . . . . . . . . . . . . . . . . Average Slot Usage (%) 77 | . 85 91 89 78 88 61 66 87 65 83 82 79 26 26 37 51 42 63 48 Engine 5 | . 14 11 8 10 9 . . 1 5 5 5 4 . . . . . . . Core 2 | . . . . . . 6 7 4 . 3 5 4 . . 1 . . . . Treads 15 | . . 9 22 26 17 15 15 19 . . . . . . . . . . . Flight 2 | . . . . . . . . . 23 23 23 23 5 5 11 21 19 19 14 Device 11 | . . 10 9 . 15 7 9 16 19 29 23 15 5 5 7 14 9 9 5 Storage 8 | . 14 14 14 14 10 7 7 5 . . . 4 5 5 4 . . . . Processor 1 | . . . . . . . . . 5 11 16 19 10 10 10 10 9 9 5 Protection 3 | . . . . . . 7 10 12 . . . . . . . . . . . Ballistic Gun 7 | . 14 14 14 24 5 . . 15 . . . . . . . . . . . Ballistic Cannon 13 | . . . . . 28 15 13 4 . . . . . . . . . . . Naked Turns 10 | . . . . . . . . . . . . . . . . . . . 10 Heaviest Build 289 | 13 29 30 208 208 286 286 289 289 23 24 20 18 4 4 23 23 22 22 22 Greatest Support 80 | 20 20 40 40 40 43 48 48 80 23 23 23 29 5 5 23 23 23 23 39 Greatest Overweight (x) 20 | . 1 2 20 10 14 7 6 11 7 1 . 1 . . . . . . . Average Overweight (x) 1 | . . . 1 5 5 6 5 3 . . . . . . . . . . . Largest Inventory Capacity 35 | 8 15 15 35 35 35 35 35 35 5 5 5 5 5 5 5 5 5 5 5 Average Capacity 29 | 8 14 15 20 35 35 35 35 34 5 5 5 5 5 5 5 5 5 5 5 Most Carried 35 | 6 6 6 17 18 35 28 32 32 5 5 5 5 5 4 5 3 3 3 4 Average Carried 22 | 6 6 5 9 14 30 27 29 24 2 5 4 4 4 4 3 2 3 3 3 Final Capacity 35 | 8 15 15 35 35 35 35 35 5 5 5 5 5 5 5 5 5 5 5 5 Final Carried 32 | 6 6 5 17 18 27 28 32 5 5 5 5 5 4 4 2 3 3 3 4 Class Distribution -------------------- 51% | Hauler-Skirmisher 15% | Hauler-Mutant 13% | Hauler-Tank 9% | Sprinter 6% | Mutant Dominant Class ---------------- Mutant | -10/Materials Mutant | -10/Mines Mutant | -10/Exiles Hauler-Mutant | -9/Mines Hauler-Skirmisher | -8/Materials Hauler-Skirmisher | -7/Factory Hauler-Skirmisher | -7/Storage Hauler-Tank | -6/Factory Sprinter | -5/Factory Sprinter | -5/Waste Sprinter | -5/Factory Ninja | -4/Factory Mutant | -4/Upper Caves Mutant | -4/Upper Caves Mutant | -4/Zhirov Sprinter | -3/Proximity Caves Sprinter | -3/Research Wizard-Sprinter | -3/DSF Wizard-Sprinter | -2/Research Resources | -11 -10 -10 -10 -9 -8 -7 -7 -6 -5 -5 -5 -4 -4 -4 -4 -3 -3 -3 -2 ----------- Run | Yrd Mat Min Exi Min Mat Fac Sto Fac Fac Was Fac Fac Upp Upp Zhi Pro Res DSF Res Matter Collected 2982 | 200 29 113 40 45 1479 20 121 535 34 196 10 21 . . . 132 . . 7 Remotely 769 | . . . . . 719 . . 50 . . . . . . . . . . . Salvage Created 3920 | . 36 236 . 57 1186 379 837 1025 73 . 52 39 . . . . . . . Parts 228 | . 3 9 . 3 77 40 46 50 . . . . . . . . . . . Haulers Intercepted 4 | . . . . . 4 . . . . . . . . . . . . . . Recyclers Shooed 2 | . . . . 1 . . . 1 . . . . . . . . . . . Parts Field Recycled . | . . . . . . . . . . . . . . . . . . . . Retrieved Matter . | . . . . . . . . . . . . . . . . . . . . Parts Self-Destructed . | . . . . . . . . . . . . . . . . . . . . Prevented . | . . . . . . . . . . . . . . . . . . . . Kills | -11 -10 -10 -10 -9 -8 -7 -7 -6 -5 -5 -5 -4 -4 -4 -4 -3 -3 -3 -2 ------- Run | Yrd Mat Min Exi Min Mat Fac Sto Fac Fac Was Fac Fac Upp Upp Zhi Pro Res DSF Res Combat Hostiles Destroyed 102 | . 1 7 . 4 36 9 28 17 . . . . . . . . . . . Guns 22 | . 1 7 . 4 4 . . 6 . . . . . . . . . . . Cannons 72 | . . . . . 30 9 28 5 . . . . . . . . . . . AOE 7 | . . . . . 2 . . 5 . . . . . . . . . . . Classes Destroyed 17 | . 1 2 . 1 8 1 2 2 . . . . . . . . . . . Worker 10 | . . . . . 1 1 2 1 4 . 1 . . . . . . . . Builder 3 | . . . . . 2 . . . . . . 1 . . . . . . . Hauler 4 | . . . . . 4 . . . . . . . . . . . . . . Mechanic 1 | . . . . . . . . 1 . . . . . . . . . . . Operator 2 | . . . . . . . 1 . . . . 1 . . . . . . . Watcher 5 | . . . . . 2 1 1 . . . 1 . . . . . . . . Swarmer 19 | . . 3 . 1 8 . 7 . . . . . . . . . . . . Grunt 36 | . 1 2 . . 15 3 11 4 . . . . . . . . . . . Brawler 1 | . . . . . 1 . . . . . . . . . . . . . . Duelist 3 | . . . . . 2 . 1 . . . . . . . . . . . . Protector 1 | . . . . . . . 1 . . . . . . . . . . . . Sentry 16 | . . 2 . . 7 2 5 . . . . . . . . . . . . Specialist 6 | . . . . . 2 . . 4 . . . . . . . . . . . Hunter 4 | . . . . . . . . 4 . . . . . . . . . . . Programmer 10 | . . . . . . 4 3 3 . . . . . . . . . . . Heavy 3 | . . . . . 1 . . 2 . . . . . . . . . . . Assembled 3 | . . . . 3 . . . . . . . . . . . . . . . Best Kill Streak 7 | . 1 5 . 2 7 3 7 7 4 . 1 1 . . . . . . . Combat Bots Only 7 | . 1 5 . 2 6 3 7 6 . . . . . . . . . . . Max Kills in Single Turn 3 | . 1 1 . 1 2 1 1 3 1 . 1 1 . . . . . . . Gunslinging 1 | . . . . . 1 . . . . . . . . . . . . . . Exploded 3 | . . . . . 1 . . 3 . . . . . . . . . . . Melee . | . . . . . . . . . . . . . . . . . . . . Uniques/NPCs Destroyed . | . . . . . . . . . . . . . . . . . . . . Combat | -11 -10 -10 -10 -9 -8 -7 -7 -6 -5 -5 -5 -4 -4 -4 -4 -3 -3 -3 -2 -------- Run | Yrd Mat Min Exi Min Mat Fac Sto Fac Fac Was Fac Fac Upp Upp Zhi Pro Res DSF Res Hostile Shots Fired 746 | . 7 71 . 19 178 7 90 219 . . 1 20 16 . . 37 . 8 73 Missed 231 | . 3 13 . 3 50 4 27 51 . . 1 6 9 . . 29 . 8 27 Damage Taken 10596 | . 46 656 . 398 2011 47 917 3512 . . 23 702 132 . . 205 . 30 1917 Core 2542 | . . 118 . 47 174 . 72 201 . . . 272 94 . . 20 . 10 1534 Absorbed by Shields . | . . . . . . . . . . . . . . . . . . . . Core Remaining (%) 79 | 100 . . . 34 68 . 89 76 . . 100 . . . . 66 . 99 . Volleys Fired 137 | . 3 29 . 12 53 . 7 31 . . 2 . . . . . . . . Largest 4 | . 2 2 . 2 4 . 1 4 . . 1 . . . . . . . . Hottest 192 | . 70 70 . 43 192 . 48 168 . . 40 . . . . . . . . Shots Fired 523 | . 6 58 . 17 218 25 89 108 . . 2 . . . . . . . . Gun 186 | . 6 58 . 17 26 . . 77 . . 2 . . . . . . . . Cannon 325 | . . . . . 188 25 87 25 . . . . . . . . . . . Launcher 12 | . . . . . 4 . 2 6 . . . . . . . . . . . Special . | . . . . . . . . . . . . . . . . . . . . Kinetic 463 | . 3 29 . 17 214 25 87 88 . . . . . . . . . . . Thermal 48 | . 3 29 . . . . . 14 . . 2 . . . . . . . . Explosive . | . . . . . . . . . . . . . . . . . . . . Electromagnetic 12 | . . . . . 4 . 2 6 . . . . . . . . . . . Robot Hit Streak 21 | . 3 9 . 5 16 10 21 11 . . . . . . . . . . . Robot Miss Streak 5 | . . 2 . 2 5 4 3 4 . . . . . . . . . . . Penetration Max . | . . . . . . . . . . . . . . . . . . . . Secondary Targets 2 | . . 1 . . 1 . . . . . . . . . . . . . . Max Gunslinging Chain 1 | . . 1 . . 1 . . . . . . . . . . . . . . Autonomous 131 | . . . . . 24 25 81 1 . . . . . . . . . . . Shots Hit Robots 320 | . 3 41 . 11 113 17 64 62 5 . 2 2 . . . . . . . Core Hits 149 | . 2 14 . 9 49 9 24 40 1 . 1 . . . . . . . . Critical Kills . | . . . . . . . . . . . . . . . . . . . . Critical Parts Destroyed 2 | . . . . . . . . . 2 . . . . . . . . . . Critical Strikes 17 | . . 1 . . 6 . 8 . 2 . . . . . . . . . . Burn 1 | . . 1 . . . . . . . . . . . . . . . . . Blast 14 | . . . . . 6 . 8 . . . . . . . . . . . . Smash 2 | . . . . . . . . . 2 . . . . . . . . . . Melee Attacks 46 | . . . . . . . . . 10 . 11 25 . . . . . . . Impact 46 | . . . . . . . . . 10 . 11 25 . . . . . . . Slashing . | . . . . . . . . . . . . . . . . . . . . Piercing . | . . . . . . . . . . . . . . . . . . . . Sneak Attacks 5 | . . . . . . . . . 3 . 1 1 . . . . . . . Combat Hostiles . | . . . . . . . . . . . . . . . . . . . . Follow-up Attacks 1 | . . . . . . . . . 1 . . . . . . . . . . Damage Inflicted 15373 | . 39 484 . 155 4980 1459 5414 1933 442 . 221 246 . . . . . . . Guns 1652 | . 36 484 . 110 178 . . 831 . . 13 . . . . . . . . Cannons 11915 | . . . . . 4586 1459 5412 458 . . . . . . . . . . . Explosions 791 | . . . . . 188 . . 603 . . . . . . . . . . . Melee 883 | . . . . . . . . . 442 . 208 233 . . . . . . . Ramming 132 | . 3 . . 45 28 . 2 41 . . . 13 . . . . . . . Kinetic 12981 | . 11 235 . 110 4764 1459 5412 990 . . . . . . . . . . . Thermal 819 | . 25 249 . . . . . 532 . . 13 . . . . . . . . Explosive . | . . . . . . . . . . . . . . . . . . . . Electromagnetic 558 | . . . . . 188 . . 370 . . . . . . . . . . . Impact 883 | . . . . . . . . . 442 . 208 233 . . . . . . . Slashing . | . . . . . . . . . . . . . . . . . . . . Piercing . | . . . . . . . . . . . . . . . . . . . . Highest Corruption 13 | . . . . . 4 . 1 4 . . . 13 13 13 13 13 . . 2 Average Corruption 5 | . . . . . 3 . 1 2 . . . 13 13 13 13 13 . . 2 Corruption Purged . | . . . . . . . . . . . . . . . . . . . . Corruption Blocked . | . . . . . . . . . . . . . . . . . . . . Effects 75 | . . . . . 23 . 3 11 . . . 2 1 1 4 30 . . . Message Errors 21 | . . . . . 8 . 1 2 . . . . 1 . 2 7 . . . Matter Fused 17 | . . . . . 3 . 1 5 . . . . . . 1 7 . . . Heat Flow Errors 9 | . . . . . 4 . . . . . . . . . . 5 . . . Energy Discharges 9 | . . . . . 2 . . . . . . . . . 1 6 . . . Parts Fused 1 | . . . . . . . . . . . . . . 1 . . . . . Data Loss (minor) 9 | . . . . . 4 . . 1 . . . 2 . . . 2 . . . Data Loss (major) 1 | . . . . . . . . . . . . . . . . 1 . . . Misfires 4 | . . . . . 2 . 1 1 . . . . . . . . . . . Alerts 1 | . . . . . . . . 1 . . . . . . . . . . . Misdirections 2 | . . . . . . . . . . . . . . . . 2 . . . Weapon Failures 1 | . . . . . . . . 1 . . . . . . . . . . . Overload Shots . | . . . . . . . . . . . . . . . . . . . . Overflow Damage 2209 | . . . . . 164 212 1178 8 313 . 133 201 . . . . . . . Projectiles 1549 | . . . . . 159 212 1178 . . . . . . . . . . . . Explosions 5 | . . . . . 5 . . . . . . . . . . . . . . Melee 655 | . . . . . . . . 8 313 . 133 201 . . . . . . . Knockbacks 46 | . . . . . 20 2 21 . 1 . 1 1 . . . . . . . Impact 3 | . . . . . . . . . 1 . 1 1 . . . . . . . Kinetic 37 | . . . . . 19 2 16 . . . . . . . . . . . . Secondary 6 | . . . . . 1 . 5 . . . . . . . . . . . . Self-Inflicted Damage 31 | . . . . . . . 25 . . . . 6 . . . . . . . Shots 1 | . . . . . . . 1 . . . . . . . . . . . . Rammed 16 | . . . . 5 7 . 1 2 . . . 1 . . . . . . . Targets Rammed 17 | . 1 . . 5 7 . 1 2 . . . 1 . . . . . . . Kicked 1 | . 1 . . . . . . . . . . . . . . . . . . Crushed . | . . . . . . . . . . . . . . . . . . . . Highest Temperature 353 | . 24 135 . . 351 . 38 353 . . 17 . . . . 251 . . 51 Average Temperature 82 | . 10 45 . . 99 . 16 88 . . 6 . . . . 105 . . 30 Received Heat Transfer 1710 | . 27 234 . . 621 9 348 315 . . 27 33 33 . . 9 . . 54 Siege Activations . | . . . . . . . . . . . . . . . . . . . . Robots Corrupted 1 | . . . . . . . . 1 . . . . . . . . . . . Combat Hostiles 1 | . . . . . . . . 1 . . . . . . . . . . . Parts Fried 8 | . . . . . . . . 1 3 . 3 1 . . . . . . . Impact Corruptions 26 | . . . . . . . 2 1 11 . 5 7 . . . . . . . Robots Melted . | . . . . . . . . . . . . . . . . . . . . Combat Hostiles . | . . . . . . . . . . . . . . . . . . . . Parts Melted 1 | . . 1 . . . . . . . . . . . . . . . . . Heat Transferred 1495 | . 74 814 . . . . . 570 . . 37 . . . . . . . . Parts Sabotaged 4 | . . . . . . . . 4 . . . . . . . . . . . Parts Stolen . | . . . . . . . . . . . . . . . . . . . . Parts Stripped . | . . . . . . . . . . . . . . . . . . . . Power Chain Reactions 4 | . . . . . . . . 4 . . . . . . . . . . . Alert | -11 -10 -10 -10 -9 -8 -7 -7 -6 -5 -5 -5 -4 -4 -4 -4 -3 -3 -3 -2 ------- Run | Yrd Mat Min Exi Min Mat Fac Sto Fac Fac Was Fac Fac Upp Upp Zhi Pro Res DSF Res Peak Influence 741 | . 75 178 . 100 741 430 481 273 147 111 262 214 . . . . 23 32 100 Initial 336 | . . 28 . . . 336 70 197 104 51 28 116 . . . . 23 17 18 Average 155 | . 37 90 . 19 190 287 182 99 114 56 165 162 . . . . 23 23 32 Maximum Alert Level 3 | . . . . . 3 2 2 1 . . 1 1 . . . . . . . Low Security (%) 68 | 100 100 100 . 100 65 13 53 93 100 100 47 84 . . . . 100 100 100 Level 1 19 | . . . . . 9 81 30 6 . . 52 15 . . . . . . . Level 2 11 | . . . . . 23 5 15 . . . . . . . . . . . . Level 3 . | . . . . . 1 . . . . . . . . . . . . . . Level 4 . | . . . . . . . . . . . . . . . . . . . . Level 5 . | . . . . . . . . . . . . . . . . . . . . High Security . | . . . . . . . . . . . . . . . . . . . . Max Security . | . . . . . . . . . . . . . . . . . . . . Squads Dispatched 33 | . 1 . . . 4 4 6 7 2 . . 5 . . . . . 1 3 Investigation 2 | . . . . . 1 1 . . . . . . . . . . . . . Extermination 11 | . . . . . . 2 3 4 1 . . 1 . . . . . . . Reinforcement 17 | . 1 . . . 2 1 1 3 1 . . 4 . . . . . 1 3 Assault 3 | . . . . . 1 . 2 . . . . . . . . . . . . Garrison . | . . . . . . . . . . . . . . . . . . . . Intercept . | . . . . . . . . . . . . . . . . . . . . Searches Triggered . | . . . . . . . . . . . . . . . . . . . . Construction Impeded . | . . . . . . . . . . . . . . . . . . . . Haulers Reinforced . | . . . . . . . . . . . . . . . . . . . . Active Scanning Responses . | . . . . . . . . . . . . . . . . . . . . Cargo Convoy Interrupts 1 | . . . . . . . . 1 . . . . . . . . . . . Stealth | -11 -10 -10 -10 -9 -8 -7 -7 -6 -5 -5 -5 -4 -4 -4 -4 -3 -3 -3 -2 --------- Run | Yrd Mat Min Exi Min Mat Fac Sto Fac Fac Was Fac Fac Upp Upp Zhi Pro Res DSF Res Distress Signals 5 | . 1 . . . 3 . 1 . . . . . . . . . . . . Communications Jammed . | . . . . . . . . . . . . . . . . . . . . Distress Signals . | . . . . . . . . . . . . . . . . . . . . Times Spotted 215 | . 8 8 . 6 59 7 36 28 2 5 3 11 8 . . 12 . 5 17 Peak Tracking Total 11 | . 5 5 . 3 6 1 9 9 3 4 1 6 8 . . 11 . 4 11 Tactical Retreats 16 | . . 1 . 1 . . 3 3 . . . 1 1 . . 3 . 1 2 Traps | -11 -10 -10 -10 -9 -8 -7 -7 -6 -5 -5 -5 -4 -4 -4 -4 -3 -3 -3 -2 ------- Run | Yrd Mat Min Exi Min Mat Fac Sto Fac Fac Was Fac Fac Upp Upp Zhi Pro Res DSF Res Traps Triggered 6 | . . . . . 1 . 1 . 2 . . . . . . . . 1 1 Indirectly . | . . . . . . . . . . . . . . . . . . . . Trap Hack Attempts . | . . . . . . . . . . . . . . . . . . . . Triggered . | . . . . . . . . . . . . . . . . . . . . Disarmed . | . . . . . . . . . . . . . . . . . . . . Reprogrammed . | . . . . . . . . . . . . . . . . . . . . Reused . | . . . . . . . . . . . . . . . . . . . . Traps Extracted . | . . . . . . . . . . . . . . . . . . . . Installed . | . . . . . . . . . . . . . . . . . . . . Triggered 5 | . . . . . . 5 . . . . . . . . . . . . . Machines | -11 -10 -10 -10 -9 -8 -7 -7 -6 -5 -5 -5 -4 -4 -4 -4 -3 -3 -3 -2 ---------- Run | Yrd Mat Min Exi Min Mat Fac Sto Fac Fac Was Fac Fac Upp Upp Zhi Pro Res DSF Res Machines Disabled 12 | . . . . . 3 1 5 1 . . . 2 . . . . . . . Max in Single Turn 1 | . . . . . 1 1 1 1 . . . 1 . . . . . . . Machines Repaired . | . . . . . . . . . . . . . . . . . . . . Machines Dismantled . | . . . . . . . . . . . . . . . . . . . . Machines Sabotaged . | . . . . . . . . . . . . . . . . . . . . Overloaded Fab Kills . | . . . . . . . . . . . . . . . . . . . . Hacking | -11 -10 -10 -10 -9 -8 -7 -7 -6 -5 -5 -5 -4 -4 -4 -4 -3 -3 -3 -2 --------- Run | Yrd Mat Min Exi Min Mat Fac Sto Fac Fac Was Fac Fac Upp Upp Zhi Pro Res DSF Res Machines Accessed 20 | . 1 . 1 . 1 . 1 1 1 . . 3 . . 9 . 1 . 1 Terminals 9 | . 1 . . . 1 . 1 1 . . . 3 . . . . 1 . 1 Fabricators 1 | . . . . . . . . . 1 . . . . . . . . . . Repair Stations . | . . . . . . . . . . . . . . . . . . . . Recycling Units . | . . . . . . . . . . . . . . . . . . . . Scanalyzers . | . . . . . . . . . . . . . . . . . . . . Garrison Access . | . . . . . . . . . . . . . . . . . . . . Total Hacks 62 | . 2 . 1 . 1 . 1 2 1 . . 3 . . 48 . 2 . 1 Successful 54 | . . . 1 . . . 1 1 1 . . . . . 48 . 1 . 1 Failed 8 | . 2 . . . 1 . . 1 . . . 3 . . . . 1 . . Catastrophic 3 | . 1 . . . 1 . . . . . . 1 . . . . . . . Database Lockouts . | . . . . . . . . . . . . . . . . . . . . Manual 5 | . . . 1 . 1 . 1 . . . . 2 . . . . . . . Terminals 12 | . 2 . . . 1 . 1 2 . . . 3 . . . . 2 . 1 Fabricators 1 | . . . . . . . . . 1 . . . . . . . . . . Repair Stations . | . . . . . . . . . . . . . . . . . . . . Recycling Units . | . . . . . . . . . . . . . . . . . . . . Scanalyzers . | . . . . . . . . . . . . . . . . . . . . Garrison Access . | . . . . . . . . . . . . . . . . . . . . Terminal Hacks 53 | . . . 1 . . . 1 1 . . . . . . 48 . 1 . 1 Record 36 | . . . . . . . . . . . . . . . 36 . . . . Part Schematic 4 | . . . . . . . . . . . . . . . 4 . . . . Robot Analysis 4 | . . . . . . . . . . . . . . . 4 . . . . Prototype ID Bank 4 | . . . . . . . . . . . . . . . 4 . . . . Open Door 1 | . . . . . . . 1 . . . . . . . . . . . . Open DSF 3 | . . . . . . . . 1 . . . . . . . . 1 . 1 Derelict Proto ID Bank 1 | . . . 1 . . . . . . . . . . . . . . . . Fabricator Hacks 1 | . . . . . . . . . 1 . . . . . . . . . . Build 1 | . . . . . . . . . 1 . . . . . . . . . . Repair Station Hacks . | . . . . . . . . . . . . . . . . . . . . Recycling Unit Hacks . | . . . . . . . . . . . . . . . . . . . . Scanalyzer . | . . . . . . . . . . . . . . . . . . . . Garrison Access Hacks . | . . . . . . . . . . . . . . . . . . . . Unauthorized Hacks . | . . . . . . . . . . . . . . . . . . . . Terminals . | . . . . . . . . . . . . . . . . . . . . Fabricators . | . . . . . . . . . . . . . . . . . . . . Repair Stations . | . . . . . . . . . . . . . . . . . . . . Recycling Units . | . . . . . . . . . . . . . . . . . . . . Scanalyzers . | . . . . . . . . . . . . . . . . . . . . Garrison Access . | . . . . . . . . . . . . . . . . . . . . Data Cores Recovered 1 | . . . . . . . . . . . 1 . . . . . . . . Used . | . . . . . . . . . . . . . . . . . . . . Hacking Detections 8 | . 1 . . . 1 . 1 1 1 . . 3 . . . . . . . Full Trace Events . | . . . . . . . . . . . . . . . . . . . . Feedback Events . | . . . . . . . . . . . . . . . . . . . . Feedback Blocked . | . . . . . . . . . . . . . . . . . . . . Robot Schematics Acquired . | . . . . . . . . . . . . . . . . . . . . Robots Built . | . . . . . . . . . . . . . . . . . . . . Authchips . | . . . . . . . . . . . . . . . . . . . . Time . | . . . . . . . . . . . . . . . . . . . . Total Robot Build Rating . | . . . . . . . . . . . . . . . . . . . . Part Schematics Acquired 4 | . . . . . . . . . . . . . . . 4 . . . . Parts Built 2 | . . . . . . . . . 2 . . . . . . . . . . Authchips . | . . . . . . . . . . . . . . . . . . . . Time 106 | . . . . . . . . . 106 . . . . . . . . . . Total Part Build Rating 12 | . . . . . . . . . 12 . . . . . . . . . . Parts Repaired . | . . . . . . . . . . . . . . . . . . . . Time . | . . . . . . . . . . . . . . . . . . . . Parts Recycled . | . . . . . . . . . . . . . . . . . . . . Recycled Matter . | . . . . . . . . . . . . . . . . . . . . Retrieved Matter . | . . . . . . . . . . . . . . . . . . . . Retrieved Components . | . . . . . . . . . . . . . . . . . . . . Parts Scanalyzed . | . . . . . . . . . . . . . . . . . . . . Part Schematics Acquired . | . . . . . . . . . . . . . . . . . . . . Parts Damaged . | . . . . . . . . . . . . . . . . . . . . Bothacking | -11 -10 -10 -10 -9 -8 -7 -7 -6 -5 -5 -5 -4 -4 -4 -4 -3 -3 -3 -2 ------------ Run | Yrd Mat Min Exi Min Mat Fac Sto Fac Fac Was Fac Fac Upp Upp Zhi Pro Res DSF Res Used RIF Installer . | . . . . . . . . . . . . . . . . . . . . Robots Hacked . | . . . . . . . . . . . . . . . . . . . . Non-combat . | . . . . . . . . . . . . . . . . . . . . Combat . | . . . . . . . . . . . . . . . . . . . . Robot Hacks Applied . | . . . . . . . . . . . . . . . . . . . . Relay Couplers Released . | . . . . . . . . . . . . . . . . . . . . Fabnet Peak Effective % . | . . . . . . . . . . . . . . . . . . . . Robots Rewired . | . . . . . . . . . . . . . . . . . . . . Allies Hacked . | . . . . . . . . . . . . . . . . . . . . Hacks Repelled . | . . . . . . . . . . . . . . . . . . . . Allies | -11 -10 -10 -10 -9 -8 -7 -7 -6 -5 -5 -5 -4 -4 -4 -4 -3 -3 -3 -2 -------- Run | Yrd Mat Min Exi Min Mat Fac Sto Fac Fac Was Fac Fac Upp Upp Zhi Pro Res DSF Res Total Allies 24 | . . . . 3 . . 2 . . 19 . . . . . . . . . Largest Group 19 | . . . . 3 3 . 2 . . 19 11 2 . . . . . . . Highest-Rated Group 684 | . . . . 72 72 . 62 . . 684 410 58 . . . . . . . Highest-Rated Ally 50 | . . . . 31 31 . 31 . . 50 46 29 . . . . . . . Total Orders . | . . . . . . . . . . . . . . . . . . . . Ally Attacks 203 | . . . . 7 21 . 11 . . 91 71 2 . . . . . . . Total Damage 6676 | . . . . 125 251 . 185 . . 4094 1962 59 . . . . . . . Kills 28 | . . . . 4 4 . . . . 10 10 . . . . . . . . Allies Corrupted 2 | . . . . . . . . . . . 2 . . . . . . . . Allies Melted . | . . . . . . . . . . . . . . . . . . . . Intel | -11 -10 -10 -10 -9 -8 -7 -7 -6 -5 -5 -5 -4 -4 -4 -4 -3 -3 -3 -2 ------- Run | Yrd Mat Min Exi Min Mat Fac Sto Fac Fac Was Fac Fac Upp Upp Zhi Pro Res DSF Res Robot Analysis Total 4 | . . . . . . . . . . . . . . . 4 . . . . Derelict Logs Recovered 4 | . . . . 1 . . . . . . . . . 3 . . . . . Drone Launches . | . . . . . . . . . . . . . . . . . . . . Drone Recoveries . | . . . . . . . . . . . . . . . . . . . . Exploration | -11 -10 -10 -10 -9 -8 -7 -7 -6 -5 -5 -5 -4 -4 -4 -4 -3 -3 -3 -2 ------------- Run | Yrd Mat Min Exi Min Mat Fac Sto Fac Fac Was Fac Fac Upp Upp Zhi Pro Res DSF Res Turns Passed 15513 | 9 244 277 474 1921 4982 1633 2249 1572 269 216 194 378 42 49 88 707 6 48 155 Spaces Moved 6425 | 3 118 96 254 344 821 247 394 351 527 280 494 669 118 140 217 767 23 85 477 Core 58 | . . . . . . . . . 2 . . . . . . . . . 56 Treads 2375 | . . 28 213 321 821 247 394 351 . . . . . . . . . . . Legs 189 | 3 118 68 . . . . . . . . . . . . . . . . . Wheels 64 | . . . 41 23 . . . . . . . . . . . . . . . Hover . | . . . . . . . . . . . . . . . . . . . . Flight 3739 | . . . . . . . . . 525 280 494 669 118 140 217 767 23 85 421 Fastest Speed 14 | 120 120 160 160 230 560 560 560 152 28 29 29 27 35 35 26 26 26 26 14 Average Speed 212 | 120 185 187 179 537 563 661 561 401 29 32 29 28 35 35 30 26 26 26 27 Slowest Speed 1280 | 120 190 260 560 560 1280 720 640 1025 400 104 29 105 35 35 35 26 26 26 50 Overloaded Moves 38 | . . . . . . . . . . . . . . . . . . . 38 Propulsion Burnouts . | . . . . . . . . . . . . . . . . . . . . Robots Hopped 9 | . . . . . . . . . . . . 2 . . 2 . . 1 4 Cave-ins Triggered 1 | . . . . . . . . . . . . 1 . . . . . . . Exploration Rate (%) 40 | 1 27 29 59 76 78 10 75 9 13 85 15 22 27 33 62 82 1 88 16 Regions Visited 19 Branch Regions 8 Pre-discovered Areas 4 | . . . . . . . . . . . . . . 1 3 . . . . Known Exits Taken 8 | . . . . . 1 . . . . . 1 1 1 1 1 1 1 . . Unknown Exits Taken 8 | 1 1 1 1 1 . 1 1 1 . . . . . . . . . . . Scrap Searched 4 | . . . . 2 . . . . . . . . . . . 2 . . . Spaces Dug 40 | . . . . . 10 . . . 2 . 9 19 . . . . . . . Terrain Destroyed 164 | . . . . . 70 9 20 35 2 . 9 19 . . . . . . . Melee 30 | . . . . . . . . . 2 . 9 19 . . . . . . . Projectile 105 | . . . . . 70 9 20 6 . . . . . . . . . . . AOE 29 | . . . . . . . . 29 . . . . . . . . . . . Terrain Rammed . | . . . . . . . . . . . . . . . . . . . . Walls Destroyed . | . . . . . . . . . . . . . . . . . . . . Machines Disabled . | . . . . . . . . . . . . . . . . . . . . Actions | -11 -10 -10 -10 -9 -8 -7 -7 -6 -5 -5 -5 -4 -4 -4 -4 -3 -3 -3 -2 --------- Run | Yrd Mat Min Exi Min Mat Fac Sto Fac Fac Was Fac Fac Upp Upp Zhi Pro Res DSF Res Total 7856 | 8 136 136 273 380 1032 249 423 444 633 409 526 822 118 139 234 1273 22 106 493 Wait 933 | 6 12 6 . 11 78 . . 23 42 113 16 111 . . . 506 . . 9 Move 6390 | 2 117 95 253 343 820 246 393 350 527 279 493 664 117 139 212 766 22 82 470 Hop 8 | . . . . . . . . . . . . 2 . . 2 . . 1 3 Pick Up 57 | . . 1 12 4 24 . 7 4 1 1 . . . . 2 1 . . . Fast Attach 56 | . 1 1 3 2 5 1 2 3 11 3 1 4 . . 6 . . 5 8 Attach 57 | . . 3 1 3 9 . 2 21 8 . . 3 1 . 5 . . . 1 Detach 26 | . . . 2 . 1 . 1 1 9 . 1 7 . . 2 . . . 2 Swap 32 | . 1 1 . . 19 1 5 3 1 . . . . . 1 . . . . Drop 61 | . 1 . 2 . 16 1 3 6 8 13 2 5 . . 4 . . . . Fire 137 | . 3 29 . 12 53 . 7 31 . . 2 . . . . . . . . Melee 44 | . . . . . . . . . 8 . 11 25 . . . . . . . Ram . | . . . . . . . . . . . . . . . . . . . . Kick 1 | . 1 . . . . . . . . . . . . . . . . . . Crush 15 | . . . . 5 7 . 1 2 . . . . . . . . . . . Escape Stasis 39 | . . . . . . . 2 . 18 . . 1 . . . . . 18 . Rewire . | . . . . . . . . . . . . . . . . . . . . Trap . | . . . . . . . . . . . . . . . . . . . . Miscellaneous . | . . . . . . . . . . . . . . . . . . . . Route ------- -11/Scrapyard -10/Materials -10/Mines (discovered 2 exits: [*Mat] / *Exi) -10/Exiles -9/Mines -8/Materials (discovered 3 exits: *Fac x3) -7/Factory -7/Storage -6/Factory -5/Factory -5/Waste -5/Factory -4/Factory -4/Upper Caves -4/Upper Caves -4/Zhirov -3/Proximity Caves -3/Research -3/DSF -2/Research (discovered 1 exit: Qua) History --------- Turn | Location | Event 7 | -11/Scrapyard | Discovered new exit (range 1) 10 | -11/Scrapyard | Entered Materials 204 | -10/Materials | Discovered new exit (range 16) 254 | -10/Materials | Entered Mines 309 | -10/Mines | Build established: Mutant 445 | -10/Mines | Discovered new exit (range 8) 507 | -10/Mines | Lost 4 parts (1p2n1w) 524 | -10/Mines | Deemed a non-threat by the Exiles lab entrance 524 | -10/Mines | Discovered new exit (range 5) 531 | -10/Mines | Entered Exiles 578 | -10/Exiles | Met 8R-AWN 603 | -10/Exiles | Met EX-HEX 648 | -10/Exiles | Met EX-BIN 670 | -10/Exiles | Aligned with FarCom system 672 | -10/Exiles | Given EX-Vault access code 709 | -10/Exiles | Opened EX-Vault 721 | -10/Exiles | Found AWS/Autocannon 754 | -10/Exiles | Warned to stay clear of 0b10 Research branches 975 | -10/Exiles | Discovered new exit (range 14) 1005 | -10/Exiles | Left Exiles lab with AWS/Autocannon 1005 | -10/Exiles | Entered Mines 1023 | -9/Mines | Assembled infested the area 1038 | -9/Mines | Learned location of 1 exit from Materials 1073 | -9/Mines | Core integrity fell below 50% 1103 | -9/Mines | Lost 5 parts (1p2n2w) 1179 | -9/Mines | Build established: Hauler-Mutant 2261 | -9/Mines | A weapon hastily lodged in a ceiling crevice suddenly fell to the ground 2844 | -9/Mines | Received a Mining Laser from a helpful Derelict 2847 | -9/Mines | Discovered new exit (range 10) 2926 | -9/Mines | Entered Materials 2926 | -8/Materials | Accompanied by 3 allies 2926 | -8/Materials | Evolved 4 slots: Utility x2, Weapon x2 2927 | -8/Materials | Identified exit to Factory 2931 | -8/Materials | Led the pair of lost Derelicts to an unsafe place 3342 | -8/Materials | Build established: Hauler-Skirmisher 6404 | -8/Materials | Discovered exit to Factory (range 15) 7726 | -8/Materials | First assault squad dispatched 7803 | -8/Materials | Discovered exit to Factory (range 12) 7908 | -8/Materials | Entered Factory 7908 | -7/Factory | Evolved 2 slots: Utility x2 9457 | -7/Factory | Discovered new exit (range 16) 9541 | -7/Factory | Entered Storage 11209 | -7/Storage | Build established: Hauler-Tank 11389 | -7/Storage | Met a pair of Derelict thieves 11465 | -7/Storage | Destroyed 7 combat bots 11723 | -7/Storage | Discovered new exit (range 12) 11790 | -7/Storage | Entered Factory 11790 | -6/Factory | Evolved 2 slots: Propulsion x1, Utility x1 12958 | -6/Factory | Cargo convoy interrupted 13272 | -6/Factory | Spotted B-75 Beast 13276 | -6/Factory | Discovered new exit (range 15) 13279 | -6/Factory | Lost 6 parts (1p2u3w) 13362 | -6/Factory | Entered another Factory area 13362 | -5/Factory | Evolved 2 slots: Power x1, Propulsion x1 13390 | -5/Factory | Lost 8 parts (1p1n3u3w) 13563 | -5/Factory | Fabricated Imp. Focal Shield? 13631 | -5/Factory | Sucked down chute 13631 | -5/Factory | Entered Waste 13644 | -5/Waste | Spotted C-40 Crusher 13645 | -5/Waste | Spotted C-40 Crusher 13650 | -5/Waste | Spotted C-40 Crusher 13656 | -5/Waste | Build established: Sprinter 13677 | -5/Waste | Warlord forces began an assault 13701 | -5/Waste | Spotted C-40 Crusher 13712 | -5/Waste | Allies destroyed C-40 Crusher 13713 | -5/Waste | Allies destroyed C-40 Crusher 13715 | -5/Waste | Allies destroyed C-40 Crusher 13744 | -5/Waste | Lost 7 allies 13749 | -5/Waste | Spotted C-40 Crusher 13766 | -5/Waste | Allies destroyed C-40 Crusher 13766 | -5/Waste | Spotted C-40 Crusher 13773 | -5/Waste | Allies destroyed C-40 Crusher 13781 | -5/Waste | Discovered new exit (range 15) 13846 | -5/Waste | Identified exit to Factory 13847 | -5/Waste | Entered Factory 13847 | -5/Factory | Accompanied by 11 allies 13959 | -5/Factory | Discovered new exit (range 15) 14034 | -5/Factory | Identified exit to Factory 14041 | -5/Factory | Entered another Factory area 14041 | -4/Factory | Accompanied by 2 allies 14041 | -4/Factory | Evolved 2 slots: Propulsion x1, Utility x1 14088 | -4/Factory | Found Prototype Processor 14088 | -4/Factory | Identified Exp. Signal Interpreter 14379 | -4/Factory | Crushed by falling debris 14380 | -4/Factory | System corruption reached 10% 14397 | -4/Factory | Spotted B-86 Titan 14417 | -4/Factory | Discovered new exit (range 5) 14418 | -4/Factory | Identified exit to Upper Caves 14419 | -4/Factory | Entered Upper Caves 14452 | -4/Upper Caves | Lost 9 parts (2p4n3u) 14456 | -4/Upper Caves | Discovered new exit (range 7) 14457 | -4/Upper Caves | Identified exit to Upper Caves 14461 | -4/Upper Caves | Entered another Upper Caves area 14465 | -4/Upper Caves | Learned Research terminal intel 14507 | -4/Upper Caves | Discovered new exit (range 8) 14510 | -4/Upper Caves | Identified exit to Zhirov 14510 | -4/Upper Caves | Entered Zhirov 14510 | -4/Zhirov | Discovered new exit (range 3) 14517 | -4/Zhirov | Met Zhirov 14525 | -4/Zhirov | Learned location of Quarantine (-2) 14525 | -4/Zhirov | Learned location of Testing (-3) 14525 | -4/Zhirov | Learned location of Command (-1) 14532 | -4/Zhirov | Zhirov requested help retrieving the SGEMP Prototype 14538 | -4/Zhirov | Found Alien Artifact 14549 | -4/Zhirov | Found Alien Artifact 14578 | -4/Zhirov | Identified Integrated Dissipator 14578 | -4/Zhirov | Installed Integrated Dissipator, increased core heat dissipation (+20) 14598 | -4/Zhirov | Identified exit to Proximity Caves 14598 | -4/Zhirov | Entered Proximity Caves 15276 | -3/Proximity Caves | Attracted the attention of an 0b10 checkpoint 15301 | -3/Proximity Caves | Discovered new exit (range 13) 15304 | -3/Proximity Caves | Identified exit to Research 15305 | -3/Proximity Caves | Entered Research 15305 | -3/Research | Evolved 2 slots: Propulsion x1, Utility x1 15306 | -3/Research | Loaded intel: 24 terminal locations 15311 | -3/Research | Identified exit to DSF 15311 | -3/Research | Entered DSF 15338 | -3/DSF | Additional patrols routed to DSF 15355 | -3/DSF | Discovered new exit (range 14) 15359 | -3/DSF | Identified exit to Research 15359 | -3/DSF | Entered Research 15359 | -2/Research | Evolved 2 slots: Power x1, Propulsion x1 15360 | -2/Research | Identified exit to Quarantine 15403 | -2/Research | Found Prototype Device 15403 | -2/Research | Identified Exp. Shock Absorption System 15503 | -2/Research | Spotted B-90 Cyclops 15505 | -2/Research | Core integrity fell below 50% 15512 | -2/Research | Core integrity fell below 20% 15514 | -2/Research | Destroyed by H-81 Overseer with Heavy Linear Accelerator Last Messages --------------- 15510_ Triggered Gamma Bomb Trap. 15510_ A bubble of electromagnetic force engulfs the area. 15510_ Meson Extractor disabled. 15510_ C-57 Dissector destroyed. 15510_ U-05 Engineer destroyed. 15511_ Knocked back. 15511_ H-81 Overseer calls for reinforcements. 15511_ ALERT: Suspicious intruders detected, dispatching Cutter reinforcements to area. 15512_ B-90 Cyclops activates siege mode. 15512_ Slug penetrates Wall. 15512_ Knocked back. 15512_ Acquired 7 matter. 15513_ K-01 Serf cleans the Fabricator. 15514_ Acquired Corrupted Impulse Thruster. 15514_ Integrated Corrupted Impulse Thruster (+10). 15514_ Slug penetrates Fabricator. 15514_ Fabricator disabled. Map ----- +----------------------------------------------------+ | ?????????????????????????????????????????????????? | | ?????????????????????????????????????????????????? | | ?????????????????????????????????????????????????? | | ?????????????????????????????????????????????????? | | ?????????????????????????????????????????????????? | | ?????????????????????????????????????????????????? | | ?????????????????????????????????????????????????? | | ?????????????????????????????????????????????????? | | ?????????????????????????????????????????????????? | | ?????????????????????????????????????????????????? | | ?????????????????????????????????????????????????? | | ?????????????????????????#""""???????????????????? | | ????????????????????w##### """"T"""" ######??????? | | ?????????????????????? #??????? | | ?????????????????????? #??????? | | ?????????????????????? ! #??????? | | ??????????????????????? #??????? | | ?????????????########### """ """ #??????? | | ?????????????# #k """ """ #??????? | | ?????????????# # """ """ #??????? | | ?????????????# +??????? | | ?????????????# #??????? | | ?????????????# ^ #??????? | | ?????????????# % %! """ #??????? | | ?????????????# = """ #???????? | | ?????????????# @cc ! """ #????#### | | ?????????????????###### =! c c /% ###### | | ??????????????????????# ^k | | ????????????????????# "" k k | | ????????????????????#""" """ | | ????????????????????#"F !! "" | | ????????????????????#"""k !! " ###+## | | ????????????????????# " ! #? | | ????????????????????###; ^ #? [ | | ?????????????????????? H # | | ????????????????????? # ] | | ???????????????????? # | | ??????????????????? B # """" | | ???????????????????#+#######""T""# ## # """" | | ???????????????????????????#"""""# ## # """" | | ???????????????????o?????????????##### #] """" | | ?????????????????????????????????????# ###????# | | ?????????????????????????????????????? ???????? | | ?????????????????????????????????????????????????? | | ?????????????????????????????????????????????????? | | ?????????????????????????????????????????????????# | | ?????????????????????????????????????????????????# | | ?????????????????????????????????????????????????# | | ?????????????????????????????????????????????????# | | ?????????????????????????????????????????????????# | +----------------------------------------------------+ Best States ------------- Heat Dissipation 87 Coolant Potential 65 Energy Generation 25 Energy Capacity 350 Matter Stores 480 Matter Capacity 500 Sight Range 16 Robot Scan Range 16 Terrain Scan Density 10 Cloak Strength 3 Armor Coverage 1050 Resistance: KI 25 Resistance: EX 50 Power Shielding 90 Evasion (%) 77 Melee Accuracy 13 Recoil Reduction 3 Matter Filtering 30 Kinecelleration 30 Offensive Hacking 24 Defensive Hacking 42 Item Schematics ----------------- Assault Drone Bay | -4/Zhirov | Free Exp. Heat Sink | -4/Zhirov | Free Exp. Optical Array | -4/Zhirov | Free Imp. Arc Thrower | -4/Zhirov | Free Robot Schematics ------------------ None Fabricated ------------ Imp. Focal Shield | x2 | -5/Factory | Preloaded Alien Tech Used ----------------- Integrated Dissipator Achievements -------------- None Challenges ------------ None Game ------ Seed DynamicThunderKinecellerator Manual? 0 Play Time 01:44:04 Cumulative 143.4 hours Start 2024.03.01 @ 19:49:55 End 2024.03.07 @ 21:06:50 Sessions 11 Manual Loads 0 Difficulty Rogue Special Mode None Game No. 156 Rogue 156 Adventurer 0 Explorer 0 Win Type - Total 0 Types 0/0/0/0/0/0/0/0/0 Lore% 50 Gallery% 67 Achievement% 53 Wizard Run 0 Options --------- Layout 1 ASCII 0 Keyboard 0 Movement Numpad Keybinds 0 Fullscreen 1 Font 24/Smallcaps Map View 50x35 Zoom Use 0% Tactical HUD 1 Map Filters NONE Filters NONE Steam 1 RUN: f59a4c31-5978-4750-8175-e8d2e48af1e3